[Event "Nordic Youth-ch A 2019"]
[Site "Borgarnes"]
[Date "2019.02.15"]
[Round "1.18"]
[White "Medhus, Vitus Bondo"]
[Black "Knudsen, Philip Uhre"]
[Result "1-0"]
[ECO "C42"]
[WhiteElo "1788"]
[BlackElo "1394"]
[Annotator "NA"]
[PlyCount "67"]
[EventDate "2019.02.03"]
[EventType "swiss"]
[EventCountry "ISL"]
[SourceTitle "playchess.com"]
[Source "ChessBase"]
[SourceQuality "1"]
[TimeControl "40/5400+30:1800+30"]

1. e4 {[%emt 0:00:00]} e5 {[%emt 0:00:00]} 2. Nf3 {[%emt 0:00:00]} Nf6 {[%emt 0:00:00]} 3. Nxe5 {[%emt 0:00:14]} Nc6 {[%emt 0:00:06]} 4. Nxc6 {[%emt 0:00:37]} dxc6 {[%emt 0:00:01]} 5. Nc3 {[%emt 0:00:33]} Bc5 {[%emt 0:00:11]} 6. Bc4 {[%emt 0:02:16]} Qd4 {[%emt 0:02:04]} 7. Qe2 {[%emt 0:01:02]} Bg4 {[%emt 0:00:06]} 8. f3 {[%emt 0:00:55]} Bd7 {[%emt 0:01:18]} 9. a4 {[%emt 0:00:34]} a6 {[%emt 0:02:06]} 10. d3 {[%emt 0:00:49]} O-O {[%emt 0:00:46]} 11. Nd1 {[%emt 0:01:44]} b5 {[%emt 0:03:42]} 12. Be3 {[%emt 0:01:40]} Qd6 {[%emt 0:00:11]} 13. Ba2 {[%emt 0:00:52]} h5 {[%emt 0:02:09]} 14. c3 {[%emt 0:02:19]} Bxe3 {[%emt 0:01:00]} 15. Nxe3 {[%emt 0:01:17]} c5 {[%emt 0:00:42]} 16. Nc2 {[%emt 0:01:54]} Rfe8 {[%emt 0:01:38]} 17. O-O {[%emt 0:02:37]} h4 {[%emt 0:00:19]} 18. Rfe1 {[%emt 0:00:55]} Nh5 {[%emt 0:01:54]} 19. Rad1 {[%emt 0:02:07]} Qg6 {[%emt 0:01:20]} 20. b4 {[%emt 0:01:18]} Nf4 {[%emt 0:00:48]} 21. Qd2 {[%emt 0:01:15]} Bh3 {[%emt 0:02:10]} 22. Ne3 {[%emt 0:01:07]} Bxg2 {[%emt 0:04:40]} 23. Nxg2 {[%emt 0:01:08]} h3 {[%emt 0:00:22]} 24. Bxf7+ {[%emt 0:01:22]} Kxf7 {[%emt 0:02:57]} 25. Qxf4+ {[%emt 0:00:16]} Kg8 {[%emt 0:00:01]} 26. Re2 {[%emt 0:00:42]} Rf8 {[%emt 0:01:43]} 27. Qe5 {[%emt 0:04:09]} cxb4 {[%emt 0:03:06]} 28. cxb4 {[%emt 0:07:04]} Rxf3 {[%emt 0:02:50]} 29. Qd5+ {[%emt 0:00:22]} Kh7 {[%emt 0:00:25]} 30. Qxa8 {[%emt 0:00:41]} Qb6+ {[%emt 0:03:24]} 31. d4 {[%emt 0:00:37]} Qg6 {[%emt 0:00:16]} 32. e5 {[%emt 0:00:18]} Qh5 {[%emt 0:02:18]} 33. Qe4+ {[%emt 0:00:44]} Kh6 {[%emt 0:00:54]} 34. Qh4 {[%emt 0:00:56]} 1-0

[Event "Nordic Youth-ch A 2019"]
[Site "Borgarnes"]
[Date "2019.02.15"]
[Round "1.19"]
[White "Moller, Tomas"]
[Black "Olsen, William Alexander"]
[Result "0-1"]
[ECO "B15"]
[WhiteElo "1226"]
[BlackElo "1646"]
[Annotator "NA RC"]
[PlyCount "46"]
[EventDate "2019.02.03"]
[EventType "swiss"]
[EventCountry "ISL"]
[SourceTitle "playchess.com"]
[Source "ChessBase"]
[SourceQuality "1"]
[TimeControl "40/5400+30:1800+30"]

1. e4 {[%emt 0:00:00]} c6 {[%emt 0:00:00]} 2. d4 {[%emt 0:00:00]} d5 {[%emt 0:00:00]} 3. Nc3 {[%emt 0:00:29]} dxe4 {[%emt 0:00:00]} 4. Nxe4 {[%emt 0:00:13]} Nf6 {[%emt 0:00:10]} 5. Ng3 {[%emt 0:02:43]} h5 {[%emt 0:00:29]} 6. h4 {[%emt 0:01:59]} c5 {[%emt 0:00:28]} 7. c3 {[%emt 0:08:39]} e6 {[%emt 0:04:01]} 8. Nf3 {[%emt 0:02:48]} cxd4 {[%emt 0:07:52]} 9. Qxd4 {[%emt 0:04:14]} Qxd4 {[%emt 0:11:10]} 10. Nxd4 {[%emt 0:00:46]} a6 {[%emt 0:01:06]} 11. Bd3 {[%emt 0:03:52]} Nbd7 {[%emt 0:00:58]} 12. Bd2 {[%emt 0:04:06]} Nc5 {[%emt 0:05:44]} 13. Bc2 {[%emt 0:03:45]} Bd6 {[%emt 0:00:57]} 14. O-O-O {[%emt 0:02:42]} Ng4 {[%emt 0:03:45]} 15. Rhf1 {[%emt 0:03:04]} Nxf2 {[%emt 0:00:51]} 16. Rxf2 {[%emt 0:01:27]} Bxg3 {[%emt 0:00:12]} 17. Rf3 {[%emt 0:04:00]} Bxh4 {[%emt 0:03:42]} 18. Rdf1 {[%emt 0:02:57]} Bf6 {[%emt 0:02:38]} 19. Be3 {[%emt 0:04:09]} Nd7 {[%emt 0:16:05]} 20. a4 {[%emt 0:03:36]} Ne5 {[%emt 0:01:57]} 21. Rh3 {[%emt 0:02:43]} Nc4 {[%emt 0:01:31]} 22. b3 {[%emt 0:03:04]} Nxe3 {[%emt 0:00:35]} 23. Rxe3 {[%emt 0:00:18]} Bg5 {[%emt 0:00:14]} 0-1

[Event "Nordic Youth-ch A 2019"]
[Site "Borgarnes"]
[Date "2019.02.15"]
[Round "2.4"]
[White "Skaale, Janus"]
[Black "Mejlvang, Magnus"]
[Result "0-1"]
[ECO "C02"]
[WhiteElo "1765"]
[BlackElo "1880"]
[Annotator "NA RC"]
[PlyCount "88"]
[EventDate "2019.02.03"]
[EventType "swiss"]
[EventCountry "ISL"]
[SourceTitle "playchess.com"]
[Source "ChessBase"]
[SourceQuality "1"]
[TimeControl "40/5400+30:1800+30"]

1. e4 {[%emt 0:00:00]} e6 {[%emt 0:00:00]} 2. d4 {[%emt 0:00:24]} d5 {[%emt 0:00:00]} 3. e5 {[%emt 0:01:36]} c5 {[%emt 0:00:00]} 4. c3 {[%emt 0:00:09]} Nc6 {[%emt 0:00:03]} 5. Nf3 {[%emt 0:00:12]} Bd7 {[%emt 0:00:48]} 6. Be2 {[%emt 0:01:51]} Qb6 {[%emt 0:03:48]} 7. a3 {[%emt 0:05:25]} Rc8 {[%emt 0:02:44]} 8. O-O {[%emt 0:01:09]} cxd4 {[%emt 0:16:50] C02: French: Advance Variation} 9. cxd4 {[%emt 0:00:33]} Na5 {[%emt 0:00:37]} 10. b4 {[%emt 0:10:15]} Nc4 {[%emt 0:02:32]} 11. Nbd2 {[%emt 0:00:48]} (11. Nc3 Ne7 12. Na4 Qc7 13. Nc5 Bc6 14. a4 b6 15. Nd3 Bd7 16. Rb1 {1-0 (41) Areshchenko,A (2664)-Mammadov,Z (2482) Baku 2014}) 11... Nxd2 {[%emt 0:10:25]} 12. Bxd2 {[%emt 0:00:58]} Ne7 $146 {[%emt 0:00:22]} ({Predecessor:} 12... Bb5 13. Rc1 Rxc1 14. Bxb5+ Qxb5 15. Qxc1 Qd7 16. Qc3 Be7 {½-½ (49) Dutschak,H (2320)-Roemer,U (2230) Germany 1992}) 13. Rc1 {[%emt 0:05:29]} Nc6 {[%emt 0:04:08]} 14. Be3 {[%emt 0:06:49]} Be7 {[%emt 0:01:00]} 15. g3 {[%emt 0:04:50]} a6 {[%emt 0:05:20]} 16. h4 {[%emt 0:02:37]} Na7 {[%emt 0:01:59]} 17. Rxc8+ {[%emt 0:02:58]} Nxc8 {[%emt 0:01:01]} 18. Kg2 {[%emt 0:07:35]} Bb5 {[%emt 0:05:28]} 19. Bxb5+ {[%emt 0:01:38]} Qxb5 {[%emt 0:00:33]} 20. h5 $11 {[%emt 0:05:06]} h6 {[%emt 0:01:53]} 21. g4 {[%emt 0:00:39]} Nb6 {[%emt 0:08:51]} 22. Rh1 {[%emt 0:01:43]} Nc4 {[%emt 0:02:06]} 23. Bc1 {[%emt 0:00:13]} a5 {[%emt 0:01:05]} 24. g5 {[%emt 0:05:23]} axb4 {[%emt 0:03:14]} 25. axb4 {[%emt 0:00:51]} Qxb4 {[%emt 0:01:00]} 26. g6 {[%emt 0:00:48]} O-O {[%emt 0:11:11]} 27. gxf7+ {[%emt 0:12:47]} Rxf7 {[%emt 0:00:21]} 28. Qd3 {[%emt 0:01:16]} Rf5 {[%emt 0:02:37]} 29. Rh3 {[%emt 0:00:32]} Qa4 {[%emt 0:04:03]} 30. Rg3 {[%emt 0:01:55]} Kf8 {[%emt 0:01:52]} 31. Nh2 {[%emt 0:06:32]} Qe8 {[%emt 0:01:19]} 32. Rg6 {[%emt 0:03:09]} Qf7 {[%emt 0:03:03]} 33. Qc2 {[%emt 0:06:35]} Rxh5 {[%emt 0:01:15]} 34. Rg3 {[%emt 0:01:39]} Rf5 {[%emt 0:01:20]} 35. Rb3 {[%emt 0:01:09]} Bh4 {[%emt 0:01:02]} 36. Nf3 {[%emt 0:00:38]} Bd8 {[%emt 0:01:47]} 37. Ba3+ {[%emt 0:01:29]} Kg8 {[%emt 0:00:37]} 38. Bc5 {[%emt 0:00:39]} b6 {[%emt 0:00:44]} 39. Ba3 {[%emt 0:00:33]} Qg6+ {[%emt 0:00:37]} 40. Kf1 {[%emt 0:00:22]} Qh5 {[%emt 0:00:32]} 41. Ke2 {[%emt 0:30:35]} Rf4 {[%emt 0:31:02]} 42. Bc1 {[%emt 0:00:36]} Rxd4 {[%emt 0:00:37]} 43. Rd3 {[%emt 0:00:33]} Re4+ {[%emt 0:00:27]} 44. Be3 {[%emt 0:00:18]} Nxe5 {[%emt 0:00:18]} 0-1

[Event "Nordic Youth-ch A 2019"]
[Site "Borgarnes"]
[Date "2019.02.15"]
[Round "2.5"]
[White "Sjoberg, Isak"]
[Black "Tryggestad, Andreas Garberg"]
[Result "1/2-1/2"]
[ECO "B40"]
[WhiteElo "2250"]
[BlackElo "2351"]
[Annotator "NA RC"]
[PlyCount "67"]
[EventDate "2019.02.03"]
[EventType "swiss"]
[EventCountry "ISL"]
[SourceTitle "playchess.com"]
[Source "ChessBase"]
[SourceQuality "1"]
[TimeControl "40/5400+30:1800+30"]

{[%evp 22,66,-4,-57,-49,32767,32767,32767,32767,32767,32767,-58,-55,32767,-58,32767,-68,-90,-78,-87,-91,-98,-76,-100,-92,-103,-106,-102,-112,-147,-153,-149,-155,-143,0,0,5,0,8,32767,32767,32767,32767,0,0,0,20]} 1. e4 {[%emt 0:00:55]} c5 {[%emt 0:00:00]} 2. Nf3 {[%emt 0:00:06]} e6 {[%emt 0:00:00]} 3. b3 {[%emt 0:01:11]} b6 {[%emt 0:00:00]} 4. Bb2 {[%emt 0:00:03]} Bb7 {[%emt 0:00:00]} 5. Nc3 {[%emt 0:00:05]} Nc6 {[%emt 0:00:00]} 6. d4 {[%emt 0:00:07]} cxd4 {[%emt 0:00:01]} 7. Nxd4 {[%emt 0:00:04]} Bc5 {[%emt 0:00:07] B40: Sicilian: 2...e6, Unusual lines} 8. Ndb5 {[%emt 0:00:33]} Qb8 {[%emt 0:00:12]} 9. Qg4 $146 {[%emt 0:14:47]} ({Predecessor:} 9. Nd5 Kf8 10. Ndc7 a6 11. Qxd7 Nf6 12. Bxf6 gxf6 13. Nxe6+ fxe6 14. Nc7 Nd4 15. O-O-O {0-1 (67) Perdomo,C (2320)-Psakhis,L (2610) Groningen 1995}) 9... Kf8 {[%emt 0:00:37]} 10. Nd5 {[%emt 0:21:42]} f6 {[%emt 0:00:03]} 11. Nbc7 {[%emt 0:00:51]} Nb4 {[%emt 0:31:19]} ({Much weaker is} 11... exd5 $6 12. Qxd7 Nce7 13. Nxa8 $11) (11... h5 $17 12. Qh3 Nb4 13. Nxa8 Nxc2+ 14. Kd1 Nxa1) 12. Nxb4 {[%emt 0:07:40]} Bxb4+ {[%emt 0:00:06]} 13. c3 {[%emt 0:00:10]} Qxc7 {[%emt 0:04:47]} 14. cxb4 {[%emt 0:00:41]} Qc2 {[%emt 0:00:05]} 15. Qe2 {[%emt 0:03:25]} Qxe4 {[%emt 0:01:14]} 16. Qxe4 {[%emt 0:00:51]} Bxe4 {[%emt 0:00:01]} 17. f3 {[%emt 0:00:23]} Bb7 {[%emt 0:01:46]} 18. Bb5 {[%emt 0:05:33]} a6 {[%emt 0:01:02]} 19. Bd3 {[%emt 0:01:13]} Ne7 {[%emt 0:00:06]} 20. Bd4 {[%emt 0:03:32]} Nd5 {[%emt 0:14:00]} 21. Be4 {[%emt 0:05:46]} b5 {[%emt 0:00:18]} 22. Rc1 {[%emt 0:02:45]} Kf7 {[%emt 0:00:43]} 23. Kd2 {[%emt 0:00:50]} Bc6 {[%emt 0:00:26]} 24. Bc5 {[%emt 0:04:37]} Nf4 {[%emt 0:04:42]} 25. Bd6 {[%emt 0:07:19]} Nxg2 {[%emt 0:06:04]} 26. Bxc6 {[%emt 0:03:43]} dxc6 {[%emt 0:00:04]} 27. Rxc6 {[%emt 0:00:37]} Rhd8 $2 {[%emt 0:02:02]} (27... e5 $19 28. Rc7+ Ke6) 28. Rg1 $1 {[%emt 0:00:45]} Rd7 {[%emt 0:00:59]} 29. Rxg2 {[%emt 0:00:50]} Rad8 {[%emt 0:00:06]} 30. Rxa6 {[%emt 0:00:05]} Rxd6+ {[%emt 0:00:04]} 31. Rxd6 {[%emt 0:00:05]} Rxd6+ {[%emt 0:00:06]} 32. Ke3 {[%emt 0:00:05]} e5 {[%emt 0:01:33]} 33. a4 {[%emt 0:01:39]} f5 $11 {[%emt 0:00:34]} 34. Rc2 1/2-1/2

[Event "Nordic Youth-ch A 2019"]
[Site "Borgarnes"]
[Date "2019.02.15"]
[Round "2.8"]
[White "Holm, Filip"]
[Black "Fjallheim, Leif Reinert"]
[Result "1-0"]
[ECO "C50"]
[WhiteElo "1960"]
[BlackElo "1712"]
[Annotator "NA RC"]
[PlyCount "89"]
[EventDate "2019.02.03"]
[EventType "swiss"]
[EventCountry "ISL"]
[SourceTitle "playchess.com"]
[Source "ChessBase"]
[SourceQuality "1"]
[TimeControl "40/5400+30:1800+30"]

1. e4 {[%emt 0:00:00]} e5 {[%emt 0:00:00]} 2. Nf3 {[%emt 0:00:00]} Nc6 {[%emt 0:00:19]} 3. Bc4 {[%emt 0:00:00]} Bc5 {[%emt 0:00:29]} 4. d3 {[%emt 0:00:06]} Nf6 {[%emt 0:01:32]} 5. O-O {[%emt 0:00:33]} d6 {[%emt 0:00:58]} 6. Bg5 {[%emt 0:00:12]} h6 {[%emt 0:01:28]} 7. Bh4 {[%emt 0:00:21]} g5 {[%emt 0:10:27] C50: Hungarian Defence and Giuoco Pianissimo} 8. Bg3 {[%emt 0:04:01]} Bg4 {[%emt 0:03:06]} (8... h5 9. Nxg5 h4 10. Nxf7 hxg3 11. Nxd8 Bg4 12. Qd2 Nd4 13. Nf7 Rxh2 14. Ng5 Ke7 15. Qe3 Ne2+ 16. Qxe2 Bxe2 17. d4 Rah8 18. Nh3 Bxc4 19. dxc5 Bxf1 20. cxd6+ cxd6 21. Kxf1 Rh1+ {0-1 (21) Mladek,R (2299)-Tomczak,M (2432) Pardubice 2018}) 9. h3 {[%emt 0:02:42]} Bh5 {[%emt 0:01:44]} 10. c3 {[%emt 0:01:28]} Bb6 {[%emt 0:08:03]} 11. b4 {[%emt 0:02:20]} Qd7 {[%emt 0:07:30]} 12. a4 $146 {[%emt 0:05:54]} ({Predecessor:} 12. Nbd2 g4 13. hxg4 Bxg4 14. a4 a5 15. Bb5 axb4 16. cxb4 {1-0 (34) Kolisch,I-Paulsen,L London (London CC) 1861}) 12... a5 {[%emt 0:05:33]} 13. b5 {[%emt 0:00:46]} Nd8 {[%emt 0:04:47]} 14. Nbd2 {[%emt 0:01:54]} Ne6 {[%emt 0:04:11]} 15. Bxe6 {[%emt 0:00:47]} Qxe6 {[%emt 0:01:42]} 16. Qc2 {[%emt 0:00:22]} Rg8 {[%emt 0:07:47]} 17. Rae1 {[%emt 0:06:24]} Bxf3 {[%emt 0:01:44]} 18. Nxf3 {[%emt 0:00:11]} Nh5 {[%emt 0:01:19]} 19. Kh2 $1 {[%emt 0:04:30]} O-O-O {[%emt 0:08:38]} 20. d4 {[%emt 0:02:29]} f6 {[%emt 0:02:04]} 21. Qd3 {[%emt 0:10:05]} Rg7 {[%emt 0:13:27]} ({Black should play} 21... g4 $15 22. Nh4 gxh3 23. gxh3 Ng7) 22. Nd2 {[%emt 0:06:20]} Nf4 {[%emt 0:04:17]} 23. Bxf4 {[%emt 0:01:17]} gxf4 {[%emt 0:00:21]} 24. Nc4 {[%emt 0:01:18]} Rdg8 {[%emt 0:01:50]} 25. Rg1 $1 {[%emt 0:00:27]} Rg5 {[%emt 0:02:26]} 26. g3 {[%emt 0:03:36]} Rh5 {[%emt 0:04:04]} 27. gxf4 {[%emt 0:00:21]} exf4 {[%emt 0:00:42]} 28. Nxb6+ {[%emt 0:04:31]} cxb6 {[%emt 0:00:02]} 29. d5 {[%emt 0:00:08]} (29. Rxg8+ $18 {and White stays clearly on top.} Qxg8 30. Qf3) 29... Qf7 {[%emt 0:01:07]} (29... Rg3 $1 $14 30. Rxg3 (30. dxe6 $2 {leads to mate.} Rhxh3#) 30... fxg3+ 31. Qxg3 Rxd5) 30. Qf3 {[%emt 0:01:57]} Rh4 {[%emt 0:02:09]} (30... Rhg5 $16 {was necessary.}) 31. Rxg8+ {[%emt 0:01:53]} Qxg8 {[%emt 0:00:08]} 32. Rg1 {[%emt 0:00:05]} Qf7 {[%emt 0:01:32]} 33. Rg4 {[%emt 0:00:15]} Rxg4 {[%emt 0:00:29]} 34. Qxg4+ $18 {[%emt 0:00:08]} ({Much less strong is} 34. hxg4 Qh7 $18) 34... Kd8 {[%emt 0:00:26]} 35. Qxf4 {[%emt 0:00:13]} Qf8 {[%emt 0:00:22]} 36. Qf5 {[%emt 0:00:15]} Qe7 {[%emt 0:00:42]} 37. Kg3 {[%emt 0:02:16]} Ke8 {[%emt 0:00:29]} 38. Kg4 {[%emt 0:01:36]} Kf8 {[%emt 0:00:31]} 39. f4 {[%emt 0:01:12]} Kg7 {[%emt 0:00:29]} 40. Qe6 {[%emt 0:01:29]} Qc7 {[%emt 0:00:27]} 41. Kf5 {[%emt 0:30:07]} Qxc3 {[%emt 0:30:29]} 42. Qe7+ {[%emt 0:00:07]} Kh8 {[%emt 0:00:36]} 43. Qe8+ {[%emt 0:00:14]} Kg7 {[%emt 0:00:22]} 44. Qg6+ {[%emt 0:00:12]} Kf8 {[%emt 0:00:05]} 45. Qxf6+ {[%emt 0:00:10]} 1-0

[Event "Nordic Youth-ch A 2019"]
[Site "Borgarnes"]
[Date "2019.02.15"]
[Round "2.10"]
[White "Liu, Casper"]
[Black "Fuglestein, Sander"]
[Result "1/2-1/2"]
[ECO "D00"]
[WhiteElo "2126"]
[BlackElo "2024"]
[Annotator "NA RC"]
[PlyCount "71"]
[EventDate "2019.02.03"]
[EventType "swiss"]
[EventCountry "ISL"]
[SourceTitle "playchess.com"]
[Source "ChessBase"]
[SourceQuality "1"]
[TimeControl "40/5400+30:1800+30"]

1. d4 {[%emt 0:00:00]} d5 {[%emt 0:00:00]} 2. Bf4 {[%emt 0:00:00]} Nf6 {[%emt 0:00:00]} 3. e3 {[%emt 0:00:00]} e6 {[%emt 0:00:30]} 4. Nf3 {[%emt 0:00:01]} Bd6 {[%emt 0:00:21]} 5. Bg3 {[%emt 0:00:10]} O-O {[%emt 0:00:39]} 6. Bd3 {[%emt 0:00:08]} c5 {[%emt 0:00:22]} 7. c3 {[%emt 0:00:05]} b6 {[%emt 0:00:32]} 8. Nbd2 {[%emt 0:03:23]} Bb7 {[%emt 0:02:36]} 9. Ne5 {[%emt 0:00:55]} Nc6 {[%emt 0:00:25]} 10. O-O {[%emt 0:03:25]} Qc7 {[%emt 0:08:38]} 11. f4 {[%emt 0:01:12]} Ne7 {[%emt 0:01:10] D02: 1 d4 d5 2 Nf3 sidelines, including 2...Nf6 3 g3 and 2...Nf6 3 Bf4} 12. Qf3 {[%emt 0:05:24]} (12. Qb1 Qc8 13. Bh4 Nf5 14. Bxf5 exf5 15. Bxf6 gxf6 16. Nef3 Qe6 17. Re1 Ba6 18. Nh4 cxd4 19. exd4 {1-0 (28) Korobov,A (2692)-Dominguez Perez,L (2739) Doha 2016}) 12... Nf5 {[%emt 0:00:18]} 13. Be1 {[%emt 0:01:37]} Be7 {[%emt 0:02:02]} 14. g4 {[%emt 0:11:59]} Nd6 {[%emt 0:00:10]} 15. g5 {[%emt 0:00:05]} Nfe4 {[%emt 0:00:12]} 16. Qh5 $146 {[%emt 0:00:14]} ({Predecessor:} 16. Qh3 Qc8 17. Ndf3 Ba6 18. Bxa6 Qxa6 19. g6 hxg6 20. Nxg6 fxg6 21. Qxe6+ {1-0 (43) Papakonstantinou,G (1612)-Vasilakis,G (1730) Rio 2018}) 16... f6 {[%emt 0:19:20]} 17. g6 {[%emt 0:00:57]} h6 {[%emt 0:02:47]} 18. Ng4 {[%emt 0:00:27]} Nf5 {[%emt 0:05:16]} 19. Nxe4 {[%emt 0:05:40]} c4 {[%emt 0:06:03]} 20. Nexf6+ {[%emt 0:04:57]} Bxf6 {[%emt 0:00:31]} 21. Bxf5 {[%emt 0:00:08]} exf5 {[%emt 0:00:07]} 22. Qxf5 {[%emt 0:00:08]} Rae8 {[%emt 0:00:24]} 23. Qh5 {[%emt 0:01:37]} Bc8 {[%emt 0:03:40]} 24. Bf2 {[%emt 0:09:23]} (24. Qxd5+ $16 Be6 25. Qh5 (25. Nxf6+ Rxf6 26. Qh5 Qd7 $14)) 24... Qd7 {[%emt 0:02:16]} 25. h3 {[%emt 0:11:25]} Bd8 {[%emt 0:14:07]} 26. Ne5 {[%emt 0:07:08]} Qxh3 {[%emt 0:00:20]} 27. Qxh3 {[%emt 0:00:08]} Bxh3 {[%emt 0:00:04]} 28. Rfe1 {[%emt 0:00:22]} Bf5 {[%emt 0:04:50]} 29. b3 {[%emt 0:09:56]} b5 {[%emt 0:06:29]} 30. b4 {[%emt 0:02:23]} a5 {[%emt 0:05:38]} 31. a4 {[%emt 0:02:21]} axb4 {[%emt 0:00:28]} 32. cxb4 {[%emt 0:00:05]} bxa4 {[%emt 0:00:52]} 33. Rxa4 {[%emt 0:00:05]} Re6 {[%emt 0:01:43]} 34. b5 $17 {[%emt 0:02:34]} (34. Rea1 $11 {keeps the balance.}) 34... Rb6 {[%emt 0:04:34]} 35. e4 {[%emt 0:01:41]} Bxe4 {[%emt 0:01:58]} 36. Bg3 {[%emt 0:01:39]} 1/2-1/2

[Event "Nordic Youth-ch A 2019"]
[Site "Borgarnes"]
[Date "2019.02.15"]
[Round "2.11"]
[White "Davidsson, Oskar Vikingur"]
[Black "Aalto, Patrik"]
[Result "1/2-1/2"]
[ECO "C60"]
[WhiteElo "1941"]
[BlackElo "1985"]
[Annotator "NA RC"]
[PlyCount "136"]
[EventDate "2019.02.03"]
[EventType "swiss"]
[EventCountry "ISL"]
[SourceTitle "playchess.com"]
[Source "ChessBase"]
[SourceQuality "1"]
[TimeControl "40/5400+30:1800+30"]

1. e4 {[%emt 0:00:00]} e5 {[%emt 0:00:00]} 2. Nf3 {[%emt 0:00:00]} Nc6 {[%emt 0:00:00]} 3. Bb5 {[%emt 0:00:00]} g6 {[%emt 0:00:00]} 4. O-O {[%emt 0:00:09]} Bg7 {[%emt 0:00:08] LiveBook: 432 Games} 5. c3 {[%emt 0:01:21]} a6 {[%emt 0:00:33]} 6. Ba4 {[%emt 0:00:12]} d6 {[%emt 0:00:21]} 7. h3 {[%emt 0:03:49]} Nf6 {[%emt 0:02:14]} 8. Re1 {[%emt 0:00:27] C60: Ruy Lopez: Unusual Black 3rd moves and 3...g6} O-O {[%emt 0:03:48]} 9. d4 {[%emt 0:00:36]} Bd7 {[%emt 0:10:43]} 10. Bg5 {[%emt 0:07:22]} (10. Nbd2 h6 11. Nf1 Re8 12. Ng3 b5 13. Bc2 exd4 14. cxd4 Nb4 15. Bb1 c5 16. d5 a5 17. a3 Na6 18. Bf4 {1-0 (57) Ivanchuk,V (2726)-Mamedyarov,S (2799) Huaian 2017}) 10... h6 {[%emt 0:05:34]} 11. Bh4 {[%emt 0:01:06]} Qe8 {[%emt 0:03:46]} 12. dxe5 {[%emt 0:03:42]} dxe5 {[%emt 0:05:03]} 13. Nbd2 {[%emt 0:02:02]} Nh5 $146 {[%emt 0:01:54]} ({Predecessor:} 13... Rd8 14. Bb3 Na5 15. Qc2 Bb5 16. Re3 {1-0 (47) Klek,H (2363)-Kulon,K (2346) Germany 2018}) 14. Nf1 {[%emt 0:02:16]} Nf4 {[%emt 0:22:52]} (14... b5 $5 {[%cal Rb5a4]} 15. Bb3 a5 $11) 15. Ne3 {[%emt 0:03:51]} g5 {[%emt 0:05:11]} 16. Bg3 {[%emt 0:00:09]} Qc8 {[%emt 0:02:26]} 17. Nd5 {[%emt 0:07:38]} b5 {[%emt 0:02:39]} 18. Bb3 {[%emt 0:02:08]} Kh8 {[%emt 0:02:27]} 19. Rc1 {[%emt 0:09:12]} (19. Bc2 $16) 19... Rd8 {[%emt 0:11:02]} (19... Bxh3 $1 $11 {keeps the balance.} 20. gxh3 Qxh3) 20. Bxf4 {[%emt 0:05:15]} exf4 {[%emt 0:05:20] [#]} (20... gxf4 $16 {was called for.} 21. Ng5 Be8) 21. Nxg5 $1 {[%emt 0:04:11]} hxg5 $2 {[%emt 0:11:22]} (21... Be8 22. Qh5 f6 23. Nf7+ Bxf7 24. Qxf7 Ne5) 22. Qh5+ {[%emt 0:00:07] Double Attack} Kg8 {[%emt 0:00:07]} 23. Nf6+ {[%emt 0:01:03]} Bxf6 {[%emt 0:00:06]} 24. Qxf7+ {[%emt 0:00:07] Double Attack} Kh8 {[%emt 0:00:08]} 25. Qxf6+ {[%emt 0:00:10]} Kh7 {[%emt 0:00:02]} 26. Bf7 {[%emt 0:02:05]} (26. Bc2 $142 Rf8 27. e5+ Bf5 28. Qxc6 Bxc2 29. Rxc2) 26... Rg8 {[%emt 0:01:23]} 27. Bxg8+ {[%emt 0:00:26]} Qxg8 {[%emt 0:00:28] [#]} 28. h4 {[%emt 0:04:47]} (28. Rcd1 $1 $16 {[%cal Rd1d7]} Be6 29. Rd5) 28... Rf8 {[%emt 0:01:40]} 29. Qxg5 {[%emt 0:00:36]} Qxg5 {[%emt 0:00:34]} 30. hxg5 {[%emt 0:00:05]} Be6 {[%emt 0:00:56]} 31. f3 {[%emt 0:01:35]} Ne5 {[%emt 0:00:34]} 32. Ra1 {[%emt 0:01:52]} Nd3 {[%emt 0:01:18]} 33. Reb1 {[%emt 0:01:09]} c5 {[%emt 0:00:56]} (33... a5 $11) 34. b3 {[%emt 0:02:09]} c4 {[%emt 0:00:42]} 35. bxc4 {[%emt 0:00:23]} Bxc4 {[%emt 0:00:16]} 36. a4 {[%emt 0:00:22]} Rc8 {[%emt 0:00:42]} 37. axb5 {[%emt 0:01:32]} Bxb5 {[%emt 0:00:13]} 38. Ra3 {[%emt 0:00:28]} Kg6 {[%emt 0:00:42]} 39. Rd1 {[%emt 0:02:22]} Kxg5 {[%emt 0:00:47]} 40. c4 {[%emt 0:01:01]} Bxc4 {[%emt 0:00:12]} 41. Raxd3 {[%emt 0:30:50]} Bxd3 {[%emt 0:30:04]} 42. Rxd3 {[%emt 0:00:10]} Rc5 {[%emt 0:00:56]} 43. Rd8 {[%emt 0:08:03]} a5 {[%emt 0:00:26]} 44. Ra8 {[%emt 0:01:10]} Kf6 {[%emt 0:00:40]} 45. Rf8+ {[%emt 0:02:25]} Ke5 {[%emt 0:00:40]} 46. Rf5+ {[%emt 0:00:43]} Kd4 $1 {[%emt 0:00:30]} 47. Rxf4 {[%emt 0:00:15]} Kc3 {[%emt 0:00:33]} 48. Rf8 {[%emt 0:01:39]} a4 {[%emt 0:00:17]} 49. Ra8 {[%emt 0:00:24]} Kb4 {[%emt 0:00:15]} 50. g4 {[%emt 0:02:56]} Ra5 {[%emt 0:00:19]} 51. Rb8+ {[%emt 0:00:17]} Kc3 {[%emt 0:00:33]} 52. Rb1 {[%emt 0:00:57]} Kc2 {[%emt 0:01:05]} 53. Ra1 {[%emt 0:01:56]} Kb2 {[%emt 0:00:11]} 54. Re1 {[%emt 0:01:03]} Re5 {[%emt 0:00:50]} 55. f4 {[%emt 0:01:19]} Re8 {[%emt 0:00:02]} 56. e5 {[%emt 0:01:10]} a3 {[%emt 0:00:56]} 57. Kf2 {[%emt 0:01:45]} a2 {[%emt 0:00:25]} 58. Re2+ {[%emt 0:00:54]} Kb3 {[%emt 0:00:11]} 59. Rxa2 {[%emt 0:00:21]} Kxa2 {[%emt 0:00:13]} 60. Ke3 {[%emt 0:00:22]} Kb3 {[%emt 0:00:29] [#]} 61. Kd4 $1 {[%emt 0:01:20]} Rd8+ {[%emt 0:00:18] [#]} 62. Ke4 $2 {[%emt 0:00:19]} (62. Kc5 $1 $18 Rc8+ 63. Kd6 Rd8+ 64. Ke7) 62... Kc4 {[%emt 0:00:38]} 63. e6 {[%emt 0:00:39]} Rg8 {[%emt 0:00:49]} 64. g5 {[%emt 0:00:24]} Kc5 {[%emt 0:00:36]} 65. Ke5 {[%emt 0:01:51]} Kc6 {[%emt 0:00:29]} 66. Kf6 $11 {[%emt 0:04:36]} Rf8+ {[%emt 0:00:21]} 67. Ke5 {[%emt 0:00:10]} Rg8 {[%emt 0:00:30]} 68. Kf6 {[%emt 0:00:37]} Rf8+ {[%emt 0:00:09]} 1/2-1/2